fUST/lending_fUST_20250724
["ID","MTS","AMOUNT","RATE_DAILY","PERIOD"]
[374568322,1753359053697,-460.0,0.0002,2]
[374568323,1753359053707,-460.0,0.0002,2]
[374568324,1753359053716,-460.0,0.0002,2]
[374568325,1753359053726,-460.0,0.0002,2]
[374568326,1753359053735,-533.7,0.0002,2]
[374568327,1753359053745,-269.4972036,0.0002,2]
[374568328,1753359053755,-460.0,0.0002,2]
[374568329,1753359053765,-460.0,0.0002,2]
[374568330,1753359053780,-764.53,0.0002,2]
[374568331,1753359053789,-460.0,0.0002,2]
[374568332,1753359053799,-460.0,0.0002,2]
[374568333,1753359053809,-460.0,0.0002,2]
[374568334,1753359053818,-460.0,0.0002,2]
[374568335,1753359053828,-460.0,0.0002,2]
[374568336,1753359053838,-460.0,0.0002,2]
[374568337,1753359053848,-2933.32,0.0002,2]
[374568338,1753359053857,-460.0,0.0002,2]
[374568339,1753359053867,-479.16,0.0002,2]
[374568340,1753359053877,-575.0,0.0002,2]
[374568341,1753359053887,-3445.18,0.0002,2]
[374568342,1753359053896,-462.25910531,0.0002,2]
[374568343,1753359053905,-460.0,0.0002,2]
[374568344,1753359053915,-626.2,0.0002,2]
[374568345,1753359053924,-460.0,0.0002,2]
[374568346,1753359053933,-460.0,0.0002,2]
[374568347,1753359053943,-1738.24,0.0002,2]
[374568348,1753359053952,-460.0,0.0002,2]
[374568349,1753359053962,-1496.43,0.0002,2]
[374568350,1753359053972,-460.0,0.0002,2]
[374568351,1753359053981,-460.0,0.0002,2]
[374568352,1753359053991,-460.0,0.0002,2]
[374568353,1753359054001,-232.42166559,0.0002,2]
[374568354,1753359054010,-594.34,0.0002,2]
[374568355,1753359054020,-460.0,0.0002,2]
[374568356,1753359054029,-460.0,0.0002,2]
[374568357,1753359054039,-460.0,0.0002,2]
[374568358,1753359054054,-460.0,0.0002,2]
[374568359,1753359054064,-460.0,0.0002,2]
[374568360,1753359054074,-460.0,0.0002,2]
[374568361,1753359054083,-460.0,0.0002,2]
[374568362,1753359054092,-460.0,0.0002,2]
[374568363,1753359054101,-460.0,0.0002,2]
[374568364,1753359054111,-1000.0,0.00020021,2]
[374568365,1753359054124,-547.18486834,0.00020021,2]
[374568366,1753359054134,-496.92094852,0.00020021,2]
[374568367,1753359054143,-500.0,0.00020021,2]
[374568368,1753359054153,-2101.69450456,0.00020107,2]
[374568369,1753359054164,-2441.96,0.00020272,2]
[374568370,1753359054174,-2441.96,0.00020272,2]
[374568371,1753359054183,-460.0,0.00020273,2]
[374568372,1753359054192,-460.0,0.00020273,2]
[374568373,1753359054202,-460.0,0.00020273,2]
[374568374,1753359054212,-460.0,0.00020273,2]
[374568375,1753359054221,-460.0,0.00020273,2]
[374568376,1753359054230,-460.0,0.00020273,2]
[374568377,1753359054240,-460.0,0.00020273,2]
[374568378,1753359054250,-460.0,0.00020273,2]
[374568379,1753359054259,-460.0,0.00020273,2]
[374568380,1753359054269,-462.51669404,0.00020273,2]
[374568381,1753359054278,-460.0,0.00020273,2]
[374568382,1753359054287,-460.0,0.00020273,2]
[374568383,1753359054296,-468.71124717,0.00020273,2]
[374568384,1753359054305,-460.0,0.00020273,2]
[374568385,1753359054315,-186.28137968,0.00020273,2]
[374568386,1753359054324,-269.23863048,0.00020273,2]
[374568387,1753359054333,-460.0,0.00020273,2]
[374568388,1753359054343,-460.0,0.00020273,2]
[374568389,1753359054352,-460.0,0.00020273,2]
[374568390,1753359054361,-460.0,0.00020273,2]
[374568391,1753359054373,-460.0,0.00020273,2]
[374568392,1753359054383,-460.0,0.00020273,2]
[374568393,1753359054392,-460.0,0.00020273,2]
[374568394,1753359054401,-504.85476836,0.00020273,2]
[374568395,1753359054411,-460.0,0.00020273,2]
[374568396,1753359054420,-460.0,0.00020273,2]
[374568397,1753359054429,-460.0,0.00020273,2]
[374568398,1753359054438,-460.0,0.00020273,2]
[374568399,1753359054448,-460.0,0.00020273,2]
[374568400,1753359054457,-460.0,0.00020273,2]
[374568401,1753359054467,-460.0,0.00020273,2]
[374568402,1753359054476,-460.0,0.00020273,2]
[374568403,1753359054486,-460.0,0.00020273,2]
[374568404,1753359054495,-489.33564879,0.00020273,2]
[374568405,1753359054505,-460.0,0.00020273,2]
[374568406,1753359054514,-460.0,0.00020273,2]
[374568407,1753359054523,-460.0,0.00020273,2]
[374568408,1753359054533,-460.0,0.00020273,2]
[374568409,1753359054543,-460.0,0.00020273,2]
[374568410,1753359054552,-460.0,0.00020273,2]
[374568411,1753359054561,-460.0,0.00020273,2]
[374568412,1753359054571,-460.0,0.00020273,2]
[374568413,1753359054580,-460.0,0.00020273,2]
[374568414,1753359054589,-460.0,0.00020273,2]
[374568415,1753359054599,-460.0,0.00020273,2]
[374568416,1753359054608,-460.0,0.00020273,2]
[374568417,1753359054618,-460.0,0.00020273,2]
[374568418,1753359054628,-460.0,0.00020273,2]
[374568419,1753359054637,-460.0,0.00020273,2]
[374568420,1753359054647,-460.0,0.00020273,2]
[374568421,1753359054656,-460.0,0.00020273,2]
[374568422,1753359054666,-460.0,0.00020273,2]
[374568423,1753359054675,-460.0,0.00020273,2]
[374568424,1753359054684,-460.0,0.00020273,2]
[374568425,1753359054694,-460.0,0.00020273,2]
[374568426,1753359054703,-561.09862588,0.00020273,2]
[374568427,1753359054713,-168.58022546,0.00020273,2]
[374568428,1753359054722,-530.38,0.00020273,2]
[374568429,1753359054732,-460.0,0.00020273,2]
[374568430,1753359054741,-598.54,0.00020273,2]
[374568431,1753359054751,-460.0,0.00020273,2]
[374568432,1753359054760,-589.49,0.00020273,2]
[374568433,1753359054771,-460.0,0.00020273,2]
[374568434,1753359054781,-460.0,0.00020273,2]
[374568435,1753359054791,-460.0,0.00020273,2]
[374568436,1753359054801,-436.83343664,0.00020273,2]
[374568437,1753359054811,-460.0,0.00020273,2]
[374568438,1753359054820,-460.0,0.00020273,2]
[374568439,1753359054829,-460.0,0.00020273,2]
[374568440,1753359054839,-460.0,0.00020273,2]
[374568441,1753359054849,-2288.96,0.00020273,2]
[374568442,1753359054859,-460.0,0.00020273,2]
[374568443,1753359054869,-460.0,0.00020273,2]
[374568444,1753359054878,-3226.86,0.00020273,2]
[374568445,1753359054887,-465.63410856,0.00020273,2]
[374568446,1753359054897,-460.0,0.00020273,2]
[374568447,1753359054906,-463.26166183,0.00020273,2]
[374568448,1753359054916,-460.0,0.00020273,2]
[374568449,1753359054925,-549.71,0.00020273,2]
[374568450,1753359054935,-460.0,0.00020273,2]
[374568451,1753359054946,-460.0,0.00020273,2]
[374568452,1753359054956,-460.0,0.00020273,2]
[374568453,1753359054966,-1346.17,0.00020273,2]
[374568454,1753359054975,-460.0,0.00020273,2]
[374568455,1753359054985,-460.0,0.00020273,2]
[374568456,1753359054993,-460.0,0.00020273,2]
[374568457,1753359055002,-460.0,0.00020273,2]
[374568458,1753359055011,-460.0,0.00020273,2]
[374568459,1753359055020,-1622.45,0.00020273,2]
[374568460,1753359055030,-501.83,0.00020273,2]
[374568461,1753359055039,-558.57,0.00020273,2]
[374568462,1753359055049,-460.0,0.00020273,2]
[374568463,1753359055059,-1151.1,0.00020273,2]
[374568464,1753359055069,-3987.66,0.00020273,2]
[374568465,1753359055078,-460.0,0.00020273,2]
[374568466,1753359055087,-1227.26,0.00020273,2]
[374568467,1753359055097,-599.14,0.00020273,2]
[374568468,1753359055107,-460.0,0.00020273,2]
[374568469,1753359055115,-460.0,0.00020273,2]
[374568470,1753359055124,-1102.32,0.00020273,2]
[374568471,1753359055133,-643.03,0.00020273,2]
[374568472,1753359055142,-721.5,0.00020273,2]
[374568473,1753359055151,-536.66,0.00020273,2]
[374568474,1753359055161,-460.0,0.00020273,2]
[374568475,1753359055171,-460.0,0.00020273,2]
[374568476,1753359055181,-460.0,0.00020273,2]
[374568477,1753359055192,-460.0,0.00020273,2]
[374568478,1753359055203,-460.0,0.00020273,2]
[374568479,1753359055213,-460.0,0.00020273,2]
[374568480,1753359055224,-1239.72,0.00020273,2]
[374568481,1753359055234,-460.0,0.00020273,2]
[374568482,1753359055245,-460.0,0.00020273,2]
[374568483,1753359055254,-460.0,0.00020273,2]
[374568484,1753359055263,-474.28,0.00020273,2]
[374568485,1753359055272,-460.0,0.00020273,2]
[374568486,1753359055282,-695.52,0.00020273,2]
[374568487,1753359055292,-151.0,0.00020273,2]
[374568488,1753359055302,-614.93,0.00020273,2]
[374568489,1753359055311,-460.0,0.00020273,2]
[374568490,1753359055319,-460.0,0.00020273,2]
[374568491,1753359055328,-460.0,0.00020273,2]
[374568492,1753359055337,-602.97,0.00020273,2]
[374568493,1753359055347,-460.0,0.00020273,2]
[374568494,1753359055356,-460.0,0.00020273,2]
[374568495,1753359055366,-460.0,0.00020273,2]
[374568496,1753359055375,-547.38,0.00020273,2]
[374568497,1753359055384,-460.0,0.00020273,2]
[374568498,1753359055394,-461.8206878,0.00020273,2]
[374568499,1753359055404,-460.0,0.00020273,2]
[374568500,1753359055414,-460.0,0.00020273,2]
[374568501,1753359055423,-570.67,0.00020273,2]
[374568502,1753359055432,-361.06285182,0.00020273,2]
[374568503,1753359055442,-460.0,0.00020273,2]
[374568504,1753359055451,-2410.32,0.00020273,2]
[374568505,1753359055461,-460.0,0.00020273,2]
[374568506,1753359055471,-460.0,0.00020273,2]
[374568507,1753359055481,-573.06,0.00020273,2]
[374568508,1753359055491,-573.59,0.00020273,2]
[374568509,1753359055500,-460.0,0.00020273,2]
[374568510,1753359055511,-460.0,0.00020273,2]
[374568511,1753359055521,-460.0,0.00020273,2]
[374568512,1753359055531,-701.0,0.00020273,2]
[374568513,1753359055540,-460.0,0.00020273,2]
[374568514,1753359055550,-1810.46,0.00020273,2]
[374568515,1753359055560,-5756.37,0.00020273,2]
[374568516,1753359055570,-460.0,0.00020273,2]
[374568517,1753359055579,-959.34,0.00020273,2]
[374568518,1753359055590,-460.0,0.00020273,2]
[374568519,1753359055599,-707.55,0.00020273,2]
[374568520,1753359055609,-460.0,0.00020273,2]
[374568521,1753359055623,-460.0,0.00020273,2]
[374568522,1753359055632,-944.6,0.00020273,2]
[374568523,1753359055641,-587.51839002,0.00020273,2]
[374568524,1753359055651,-1286.44,0.00020273,2]
[374568525,1753359055660,-460.0,0.00020273,2]
[374568526,1753359055670,-214.72,0.00020273,2]
[374568527,1753359055679,-460.0,0.00020273,2]
[374568528,1753359055689,-460.0,0.00020273,2]
[374568529,1753359055699,-234.11705172,0.00020273,2]
[374568530,1753359055708,-533.7,0.00020273,2]
[374568531,1753359055718,-460.0,0.00020273,2]
[374568532,1753359055727,-460.0,0.00020273,2]
[374568533,1753359055737,-764.53,0.00020273,2]
[374568534,1753359055747,-460.0,0.00020273,2]
[374568535,1753359055756,-460.0,0.00020273,2]
[374568536,1753359055766,-187.30199696,0.00020273,2]
[374568537,1753359055781,-460.0,0.00020273,2]
[374568538,1753359055791,-460.0,0.00020273,2]
[374568539,1753359055800,-2933.32,0.00020273,2]
[374568540,1753359055810,-460.0,0.00020273,2]
[374568541,1753359055820,-479.16,0.00020273,2]
[374568542,1753359055829,-575.0,0.00020273,2]
[374568543,1753359055839,-3445.18,0.00020273,2]
[374568544,1753359055848,-460.0,0.00020273,2]
[374568545,1753359055859,-626.2,0.00020273,2]
[374568546,1753359055870,-460.0,0.00020273,2]
[374568547,1753359055880,-1738.24,0.00020273,2]
[374568548,1753359055889,-460.0,0.00020273,2]
[374568549,1753359055899,-460.0,0.00020273,2]
[374568550,1753359056022,-1496.43,0.00020273,2]
[374568551,1753359056033,-460.0,0.00020273,2]
[374568552,1753359056043,-460.0,0.00020273,2]
[374568553,1753359056054,-594.34,0.00020273,2]
[374568554,1753359056065,-464.92321704,0.00020273,2]
[374568555,1753359056075,-460.0,0.00020273,2]
[374568556,1753359056085,-460.0,0.00020273,2]
[374568557,1753359056095,-460.0,0.00020273,2]
[374568558,1753359056106,-460.0,0.00020273,2]
[374568559,1753359056119,-460.0,0.00020273,2]
[374568560,1753359056129,-460.0,0.00020273,2]
[374568561,1753359056139,-460.0,0.00020273,2]
[374568562,1753359056149,-500.0,0.00020274,2]
[374568563,1753359056159,-2101.69450456,0.00020314,3]
[374568564,1753359056169,-916.81750488,0.00020443,2]
[374568565,1753359056178,-160.0,0.00020455,2]
[374568566,1753359056189,-1000.0,0.00020521,2]
[374568567,1753359056198,-649.91416204,0.00020521,2]
[374568568,1753359056207,-2101.69450456,0.00020521,3]
[374568569,1753359056217,-2441.96,0.00020546,2]
[374568570,1753359056227,-2441.96,0.00020546,2]
[374568571,1753359056237,-460.0,0.00020547,2]
[374568572,1753359056246,-460.0,0.00020547,2]
[374568573,1753359056256,-460.0,0.00020547,2]
[374568574,1753359056265,-460.0,0.00020547,2]
[374568575,1753359056275,-460.0,0.00020547,2]
[374568576,1753359056284,-460.0,0.00020547,2]
[374568577,1753359056293,-392.70825012,0.00020547,2]
[374568578,1753359056303,-460.0,0.00020547,2]
[374568579,1753359056313,-468.27109333,0.00020547,2]
[374568580,1753359056323,-460.0,0.00020547,2]
[374568581,1753359056332,-460.0,0.00020547,2]
[374568582,1753359056342,-460.0,0.00020547,2]
[374568583,1753359056352,-460.0,0.00020547,2]
[374568584,1753359056362,-460.0,0.00020547,2]
[374568585,1753359056373,-460.0,0.00020547,2]
[374568586,1753359056382,-460.0,0.00020547,2]
[374568587,1753359056393,-460.0,0.00020547,2]
[374568588,1753359056402,-460.0,0.00020547,2]
[374568589,1753359056411,-460.0,0.00020547,2]
[374568590,1753359056421,-460.0,0.00020547,2]
[374568591,1753359056430,-460.0,0.00020547,2]
[374568592,1753359056440,-460.0,0.00020547,2]
[374568593,1753359056449,-460.0,0.00020547,2]
[374568594,1753359056459,-460.0,0.00020547,2]
[374568595,1753359056469,-460.0,0.00020547,2]
[374568596,1753359056478,-460.0,0.00020547,2]
[374568597,1753359056487,-460.0,0.00020547,2]
[374568598,1753359056496,-460.0,0.00020547,2]
[374568599,1753359056506,-601.80099529,0.00020547,2]
[374568600,1753359056515,-460.0,0.00020547,2]
[374568601,1753359056525,-460.0,0.00020547,2]
[374568602,1753359056534,-460.0,0.00020547,2]
[374568603,1753359056543,-460.0,0.00020547,2]
[374568604,1753359056553,-460.0,0.00020547,2]
[374568605,1753359056562,-172.13230197,0.00020547,2]
[374568606,1753359056572,-460.0,0.00020547,2]
[374568607,1753359056581,-460.0,0.00020547,2]
[374568608,1753359056591,-460.0,0.00020547,2]
[374568609,1753359056600,-460.0,0.00020547,2]
[374568610,1753359056609,-460.0,0.00020547,2]
[374568611,1753359056620,-460.0,0.00020547,2]
[374568612,1753359056629,-460.0,0.00020547,2]
[374568613,1753359056639,-460.0,0.00020547,2]
[374568614,1753359056648,-460.0,0.00020547,2]
[374568615,1753359056657,-530.38,0.00020547,2]
[374568616,1753359056667,-192.40003544,0.00020547,2]
[374568617,1753359056676,-576.7164575,0.00020547,2]
[374568618,1753359056686,-598.54,0.00020547,2]
[374568619,1753359056695,-589.49,0.00020547,2]
[374568620,1753359056704,-460.0,0.00020547,2]
[374568621,1753359056714,-460.0,0.00020547,2]
[374568622,1753359056723,-460.0,0.00020547,2]
[374568623,1753359056733,-460.0,0.00020547,2]
[374568624,1753359056743,-498.97386836,0.00020547,2]
[374568625,1753359056753,-460.0,0.00020547,2]
[374568626,1753359056763,-460.0,0.00020547,2]
[374568627,1753359056777,-460.0,0.00020547,2]
[374568628,1753359056786,-460.0,0.00020547,2]
[374568629,1753359056796,-2288.96,0.00020547,2]
[374568630,1753359056807,-3226.86,0.00020547,2]
[374568631,1753359056818,-460.0,0.00020547,2]
[374568632,1753359056829,-549.71,0.00020547,2]
[374568633,1753359056839,-460.0,0.00020547,2]
[374568634,1753359056851,-460.0,0.00020547,2]
[374568635,1753359056861,-460.0,0.00020547,2]
[374568636,1753359056872,-1346.17,0.00020547,2]
[374568637,1753359056882,-460.0,0.00020547,2]
[374568638,1753359056892,-395.56165622,0.00020547,2]
[374568639,1753359056901,-460.0,0.00020547,2]
[374568640,1753359056911,-1622.45,0.00020547,2]
[374568641,1753359056924,-460.0,0.00020547,2]
[374568642,1753359056933,-501.83,0.00020547,2]
[374568643,1753359056943,-558.57,0.00020547,2]
[374568644,1753359056952,-460.0,0.00020547,2]
[374568645,1753359056962,-1151.1,0.00020547,2]
[374568646,1753359056971,-3987.66,0.00020547,2]
[374568647,1753359056980,-460.0,0.00020547,2]
[374568648,1753359056990,-1227.26,0.00020547,2]
[374568649,1753359056999,-599.14,0.00020547,2]
[374568650,1753359057008,-460.0,0.00020547,2]
[374568651,1753359057018,-460.0,0.00020547,2]
[374568652,1753359057028,-1102.32,0.00020547,2]
[374568653,1753359057038,-643.03,0.00020547,2]
[374568654,1753359057047,-721.5,0.00020547,2]
[374568655,1753359057058,-536.66,0.00020547,2]
[374568656,1753359057068,-460.0,0.00020547,2]
[374568657,1753359057079,-460.0,0.00020547,2]
[374568658,1753359057089,-460.0,0.00020547,2]
[374568659,1753359057099,-460.0,0.00020547,2]
[374568660,1753359057109,-1239.72,0.00020547,2]
[374568661,1753359057120,-460.0,0.00020547,2]
[374568662,1753359057130,-460.0,0.00020547,2]
[374568663,1753359057140,-460.0,0.00020547,2]
[374568664,1753359057150,-460.0,0.00020547,2]
[374568665,1753359057160,-474.28,0.00020547,2]
[374568666,1753359057169,-695.52,0.00020547,2]
[374568667,1753359057179,-614.93,0.00020547,2]
[374568668,1753359057188,-460.0,0.00020547,2]
[374568669,1753359057197,-460.0,0.00020547,2]
[374568670,1753359057207,-460.0,0.00020547,2]
[374568671,1753359057216,-602.97,0.00020547,2]
[374568672,1753359057226,-460.0,0.00020547,2]
[374568673,1753359057235,-460.0,0.00020547,2]
[374568674,1753359057245,-460.0,0.00020547,2]
[374568675,1753359057255,-547.38,0.00020547,2]
[374568676,1753359057264,-444.81,0.00020547,2]
[374568677,1753359057275,-460.0,0.00020547,2]
[374568678,1753359057285,-460.0,0.00020547,2]
[374568679,1753359057295,-570.67,0.00020547,2]
[374568680,1753359057304,-460.0,0.00020547,2]
[374568681,1753359057313,-2410.32,0.00020547,2]
[374568682,1753359057323,-460.0,0.00020547,2]
[374568683,1753359057333,-460.0,0.00020547,2]
[374568684,1753359057342,-573.06,0.00020547,2]
[374568685,1753359057351,-573.59,0.00020547,2]
[374568686,1753359057361,-460.0,0.00020547,2]
[374568687,1753359057373,-460.0,0.00020547,2]
[374568688,1753359057383,-608.45244726,0.00020547,2]
[374568689,1753359057392,-701.0,0.00020547,2]
[374568690,1753359057402,-460.0,0.00020547,2]
[374568691,1753359057412,-5756.37,0.00020547,2]
[374568692,1753359057422,-1810.46,0.00020547,2]
[374568693,1753359057431,-460.0,0.00020547,2]
[374568694,1753359057441,-959.34,0.00020547,2]
[374568695,1753359057451,-460.0,0.00020547,2]
[374568696,1753359057460,-707.55,0.00020547,2]
[374568697,1753359057470,-460.0,0.00020547,2]
[374568698,1753359057480,-460.0,0.00020547,2]
[374568699,1753359057489,-944.6,0.00020547,2]
[374568700,1753359057499,-1286.44,0.00020547,2]
[374568701,1753359057509,-460.0,0.00020547,2]
[374568702,1753359057519,-460.0,0.00020547,2]
[374568703,1753359057528,-533.7,0.00020547,2]
[374568704,1753359057538,-460.0,0.00020547,2]
[374568705,1753359057547,-460.0,0.00020547,2]
[374568706,1753359057557,-764.53,0.00020547,2]
[374568707,1753359057566,-460.0,0.00020547,2]
[374568708,1753359057576,-460.0,0.00020547,2]
[374568709,1753359057585,-460.0,0.00020547,2]
[374568710,1753359057595,-460.0,0.00020547,2]
[374568711,1753359057604,-2933.32,0.00020547,2]
[374568712,1753359057614,-288.51538864,0.00020547,2]
[374568713,1753359057624,-479.16,0.00020547,2]
[374568714,1753359057634,-575.0,0.00020547,2]
[374568715,1753359057643,-3445.18,0.00020547,2]
[374568716,1753359057653,-460.0,0.00020547,2]
[374568717,1753359057662,-626.2,0.00020547,2]
[374568718,1753359057672,-460.0,0.00020547,2]
[374568719,1753359057681,-1738.24,0.00020547,2]
[374568720,1753359057691,-460.0,0.00020547,2]
[374568721,1753359057700,-460.0,0.00020547,2]
[374568722,1753359057710,-1496.43,0.00020547,2]
[374568723,1753359057719,-460.0,0.00020547,2]
[374568724,1753359057729,-460.0,0.00020547,2]
[374568725,1753359057739,-460.0,0.00020547,2]
[374568726,1753359057749,-460.0,0.00020547,2]
[374568727,1753359057759,-594.34,0.00020547,2]
[374568728,1753359057777,-460.0,0.00020547,2]
[374568729,1753359057795,-256.58209565,0.00020547,2]
[374568730,1753359057805,-460.0,0.00020547,2]
[374568731,1753359057815,-425.18244919,0.00020547,2]
[374568732,1753359057825,-460.0,0.00020547,2]
[374568733,1753359057835,-207.58775708,0.00020548,2]
[374568734,1753359057844,-151.0,0.000206,3]
[374568735,1753359057855,-2441.96,0.00020658,2]
[374568736,1753359057868,-2441.96,0.00020658,2]
[374568737,1753359057878,-2441.96,0.00020658,2]
[374568738,1753359057888,-2441.96,0.00020658,2]
[374568739,1753359057898,-2442.01708318,0.00020658,2]
[374568740,1753359057907,-2101.69450456,0.00020728,3]
[374568741,1753359057917,-3025.54,0.00020746,3]
[374568742,1753359057926,-214.7213231,0.00020746,3]
[374568743,1753359057936,-12624.810388,0.00020746,3]
[374568744,1753359057946,-12624.810388,0.00020749,2]
[374568745,1753359057956,-215.88777038,0.00020749,2]
[374568746,1753359057965,-160.0,0.00020749,2]
[374568747,1753359057974,-214.7213231,0.00020749,2]
[374568748,1753359057984,-840.23756827,0.00020749,2]
[374568749,1753359057993,-526.24749348,0.00020749,2]
[374568750,1753359058002,-231.16387093,0.00020749,2]
[374568751,1753359058011,-160.0,0.00020759,2]
[374568752,1753359058021,-476.79463412,0.00020759,2]
[374568753,1753359058030,-160.0,0.00020759,2]
[374568754,1753359058040,-160.0,0.00020759,2]
[374568755,1753359058050,-160.0,0.00020759,2]
[374568756,1753359058060,-160.0,0.00020759,2]
[374568757,1753359058070,-460.0,0.00020821,2]
[374568758,1753359058080,-460.0,0.00020821,2]
[374568759,1753359058090,-460.0,0.00020821,2]
[374568760,1753359058099,-460.0,0.00020821,2]
[374568761,1753359058108,-339.82700932,0.00020821,2]
[374568762,1753359058119,-460.0,0.00020821,2]
[374568763,1753359058129,-467.24073675,0.00020821,2]
[374568764,1753359058139,-460.0,0.00020821,2]
[374568765,1753359058149,-460.0,0.00020821,2]
[374568766,1753359058158,-460.0,0.00020821,2]
[374568767,1753359058167,-285.69965024,0.00020821,2]
[374568768,1753359058176,-460.0,0.00020821,2]
[374568769,1753359058186,-460.0,0.00020821,2]
[374568770,1753359058195,-460.0,0.00020821,2]
[374568771,1753359058204,-460.0,0.00020821,2]
[374568772,1753359058214,-460.0,0.00020821,2]
[374568773,1753359058227,-460.0,0.00020821,2]
[374568774,1753359058236,-460.0,0.00020821,2]
[374568775,1753359058247,-460.0,0.00020821,2]
[374568776,1753359058256,-460.0,0.00020821,2]
[374568777,1753359058268,-460.0,0.00020821,2]
[374568778,1753359058282,-460.0,0.00020821,2]
[374568779,1753359058291,-460.0,0.00020821,2]
[374568780,1753359058301,-460.0,0.00020821,2]
[374568781,1753359058311,-460.0,0.00020821,2]
[374568782,1753359058320,-460.0,0.00020821,2]
[374568783,1753359058329,-460.0,0.00020821,2]
[374568784,1753359058339,-460.0,0.00020821,2]
[374568785,1753359058348,-460.0,0.00020821,2]
[374568786,1753359058357,-460.0,0.00020821,2]
[374568787,1753359058369,-460.0,0.00020821,2]
[374568788,1753359058378,-460.0,0.00020821,2]
[374568789,1753359058387,-460.0,0.00020821,2]
[374568790,1753359058396,-460.0,0.00020821,2]
[374568791,1753359058406,-530.38,0.00020821,2]
[374568792,1753359058416,-598.54,0.00020821,2]
[374568793,1753359058425,-589.49,0.00020821,2]
[374568794,1753359058434,-262.43585737,0.00020821,2]
[374568795,1753359058444,-460.0,0.00020821,2]
[374568796,1753359058453,-460.0,0.00020821,2]
[374568797,1753359058462,-460.0,0.00020821,2]
[374568798,1753359058575,-460.0,0.00020821,2]
[374568799,1753359058585,-463.34164963,0.00020821,2]
[374568800,1753359058595,-460.0,0.00020821,2]
[374568801,1753359058604,-460.0,0.00020821,2]
[374568802,1753359058613,-2288.96,0.00020821,2]
[374568803,1753359058623,-3226.86,0.00020821,2]
[374568804,1753359058633,-460.0,0.00020821,2]
[374568805,1753359058643,-549.71,0.00020821,2]
[374568806,1753359058652,-460.0,0.00020821,2]
[374568807,1753359058662,-460.0,0.00020821,2]
[374568808,1753359058671,-460.0,0.00020821,2]
[374568809,1753359058681,-1346.17,0.00020821,2]
[374568810,1753359058690,-460.0,0.00020821,2]
[374568811,1753359058699,-460.0,0.00020821,2]
[374568812,1753359058708,-1622.45,0.00020821,2]
[374568813,1753359058718,-460.0,0.00020821,2]
[374568814,1753359058727,-501.83,0.00020821,2]
[374568815,1753359058737,-558.57,0.00020821,2]
[374568816,1753359058746,-1151.1,0.00020821,2]
[374568817,1753359058755,-3987.66,0.00020821,2]
[374568818,1753359058764,-460.0,0.00020821,2]
[374568819,1753359058776,-1227.26,0.00020821,2]
[374568820,1753359058786,-599.14,0.00020821,2]
[374568821,1753359058795,-460.0,0.00020821,2]